fUST/lending_fUST_20250816
["ID","MTS","AMOUNT","RATE_DAILY","PERIOD"]
[379604145,1755343862156,-6893.89,0.00022739,3]
[379604146,1755343862166,-480.0,0.00022739,3]
[379604147,1755343862176,-480.0,0.00022739,3]
[379604148,1755343862186,-480.0,0.00022739,3]
[379604149,1755343862198,-480.0,0.00022739,3]
[379604150,1755343862207,-480.0,0.00022739,3]
[379604151,1755343862217,-480.0,0.00022739,3]
[379604152,1755343862227,-480.0,0.00022739,3]
[379604153,1755343862236,-182.89920866,0.00022739,3]
[379604154,1755343862247,-215.68093138,0.0002274,7]
[379604155,1755343862257,-462.1417622,0.0002274,7]
[379604156,1755343862266,-420.0,0.00022752,2]
[379604157,1755343862276,-150.7008718,0.00022773,2]
[379604158,1755343862286,-500.0,0.00022773,2]
[379604159,1755343862295,-972.0,0.00022793,2]
[379604160,1755343862305,-2152.0,0.00022793,2]
[379604161,1755343862314,-637.0,0.00022793,2]
[379604162,1755343862324,-408.0,0.00022793,2]
[379604163,1755343862335,-153.0,0.00022795,2]
[379604164,1755343862344,-160.7608968,0.00022795,2]
[379604165,1755343862354,-153.0,0.00022795,2]
[379604166,1755343862364,-160.7608968,0.00022795,2]
[379604167,1755343862373,-160.7608968,0.00022795,2]
[379604168,1755343862383,-153.0,0.00022795,2]
[379604169,1755343862393,-160.7608968,0.00022795,2]
[379604170,1755343862403,-160.7608968,0.00022795,2]
[379604171,1755343862414,-153.0,0.00022795,2]
[379604172,1755343862423,-160.7608968,0.00022795,2]
[379604173,1755343862433,-160.7608968,0.00022795,2]
[379604174,1755343862442,-153.0,0.00022795,2]
[379604175,1755343862452,-160.7608968,0.00022795,2]
[379604176,1755343862461,-153.0,0.00022795,2]
[379604177,1755343862470,-160.7608968,0.00022795,2]
[379604178,1755343862479,-160.7608968,0.00022795,2]
[379604179,1755343862489,-153.0,0.00022795,2]
[379604180,1755343862499,-160.7608968,0.00022795,2]
[379604181,1755343862508,-160.7608968,0.00022795,2]
[379604182,1755343862517,-306.0,0.00022795,2]
[379604183,1755343862526,-160.7608968,0.00022795,2]
[379604184,1755343862536,-160.7608968,0.00022795,2]
[379604185,1755343862545,-160.7608968,0.00022795,2]
[379604186,1755343862555,-153.0,0.00022795,2]
[379604187,1755343862566,-160.7608968,0.00022795,2]
[379604188,1755343862576,-160.7608968,0.00022795,2]
[379604189,1755343862585,-160.7608968,0.00022795,2]
[379604190,1755343862595,-160.7608968,0.00022795,2]
[379604191,1755343862605,-160.7608968,0.00022795,2]
[379604192,1755343862614,-160.7608968,0.00022795,2]
[379604193,1755343862623,-160.7608968,0.00022795,2]
[379604194,1755343862633,-160.7608968,0.00022795,2]
[379604195,1755343862642,-171.8739903,0.00022795,2]
[379604196,1755343862651,-396.2153682,0.00022795,2]
[379604197,1755343862660,-153.0,0.00022795,2]
[379604198,1755343862670,-153.0,0.00022795,2]
[379604199,1755343862680,-153.0,0.00022795,2]
[379604200,1755343862689,-153.0,0.00022795,2]
[379604201,1755343862699,-153.32251725,0.00022822,2]
[379604202,1755343862708,-500.0,0.00022836,8]
[379604203,1755343862718,-151.0,0.00022836,7]
[379604204,1755343862728,-162.923681,0.00022836,7]
[379604205,1755343862737,-162.923681,0.00022836,7]
[379604206,1755343862747,-266.0,0.00022844,2]
[379604207,1755343862757,-500.0,0.00022845,8]
[379604208,1755343862766,-1018.27173056,0.00022889,2]
[379604209,1755343862776,-151.0,0.00022896,2]
[379604210,1755343862786,-151.0,0.00022896,2]
[379604211,1755343862795,-151.0,0.00022896,2]
[379604212,1755343862804,-433.41290013,0.00022896,2]
[379604213,1755343862814,-151.0,0.00022896,2]
[379604214,1755343862823,-153.32251726,0.00022904,2]
[379604215,1755343862833,-151.0,0.00022932,7]
[379604216,1755343862842,-151.0,0.00022932,7]
[379604217,1755343862852,-266.0,0.00022942,2]
[379604218,1755343862861,-6553.61285231,0.00022948,2]
[379604219,1755343862871,-597.0,0.00022955,20]
[379604220,1755343862882,-153.32251725,0.00022959,2]
[379604221,1755343862892,-266.0,0.00022983,2]
[379604222,1755343862902,-1000.0,0.00022999,7]
[379604223,1755343862912,-157.0,0.00023,7]
[379604224,1755343862922,-157.0,0.00023,7]
[379604225,1755343862935,-157.0,0.00023,7]
[379604226,1755343862948,-157.0,0.00023,6]
[379604227,1755343862958,-157.0,0.00023,6]
[379604228,1755343862967,-2027.0,0.00023,30]
[379604229,1755343862976,-145819.75,0.00023,7]
[379604230,1755343862985,-151.0,0.00023,7]
[379604231,1755343862995,-151.0,0.00023,7]
[379604232,1755343863004,-160.0,0.00023,3]
[379604233,1755343863014,-843.36313173,0.00023,3]
[379604234,1755343863025,-160.0,0.00023,3]
[379604235,1755343863035,-232.11368524,0.00023,3]
[379604236,1755343863044,-151.0,0.00023,7]
[379604237,1755343863053,-151.0,0.00023,7]
[379604238,1755343863063,-151.0,0.00023,7]
[379604239,1755343863073,-151.0,0.00023,7]
[379604240,1755343863083,-160.0,0.00023,3]
[379604241,1755343863094,-160.0,0.00023,3]
[379604242,1755343863103,-151.0,0.00023,7]
[379604243,1755343863113,-151.0,0.00023,7]
[379604244,1755343863122,-3000.0,0.00023,2]
[379604245,1755343863132,-151.0,0.00023,7]
[379604246,1755343863142,-4702.0,0.00023,30]
[379604247,1755343863151,-194.008827,0.00023,7]
[379604248,1755343863160,-194.008827,0.00023,7]
[379604249,1755343863171,-501.74378,0.00023,7]
[379604250,1755343863180,-501.74378,0.00023,7]
[379604251,1755343863189,-151.0,0.00023,7]
[379604252,1755343863198,-151.0,0.00023,7]
[379604253,1755343863207,-151.0,0.00023,7]
[379604254,1755343863217,-151.0,0.00023,7]
[379604255,1755343863226,-160.0,0.00023,2]
[379604256,1755343863235,-528.38334358,0.00023,3]
[379604257,1755343863244,-164.0,0.00023,7]
[379604258,1755343863253,-168.0,0.00023,7]
[379604259,1755343863263,-215.68093138,0.00023,7]
[379604260,1755343863272,-462.1417622,0.00023,7]
[379604261,1755343863282,-250.734607,0.00023,7]
[379604262,1755343863293,-250.734607,0.00023,7]
[379604263,1755343863304,-162.923681,0.00023,7]
[379604264,1755343863314,-162.923681,0.00023,7]
[379604265,1755343863324,-742.19765,0.00023,7]
[379604266,1755343863334,-160.0,0.00023,3]
[379604267,1755343863343,-742.19765,0.00023,7]
[379604268,1755343863353,-216.80276362,0.00023,3]
[379604269,1755343863364,-3000.0,0.0002301,2]
[379604270,1755343863374,-151.0,0.00023013,7]
[379604271,1755343863383,-151.0,0.00023013,7]
[379604272,1755343863392,-789.171509,0.00023013,7]
[379604273,1755343863403,-789.171509,0.00023013,7]
[379604274,1755343863413,-215.763077,0.00023013,7]
[379604275,1755343863423,-215.763077,0.00023013,7]
[379604276,1755343863432,-151.0,0.00023013,7]
[379604277,1755343863442,-480.0,0.00023013,3]
[379604278,1755343863451,-480.0,0.00023013,3]
[379604279,1755343863460,-480.0,0.00023013,3]
[379604280,1755343863469,-480.0,0.00023013,3]
[379604281,1755343863478,-240.368146,0.00023013,7]
[379604282,1755343863488,-480.0,0.00023013,3]
[379604283,1755343863498,-183.10301775,0.00023013,3]
[379604284,1755343863507,-480.0,0.00023013,3]
[379604285,1755343863516,-480.0,0.00023013,3]
[379604286,1755343863525,-480.0,0.00023013,3]
[379604287,1755343863534,-480.0,0.00023013,3]
[379604288,1755343863543,-480.0,0.00023013,3]
[379604289,1755343863553,-440.0,0.00023013,3]
[379604290,1755343863562,-480.0,0.00023013,3]
[379604291,1755343863571,-480.0,0.00023013,3]
[379604292,1755343863581,-480.0,0.00023013,3]
[379604293,1755343863590,-300.0,0.00023013,3]
[379604294,1755343863600,-344.795812,0.00023013,7]
[379604295,1755343863609,-480.0,0.00023013,3]
[379604296,1755343863619,-480.0,0.00023013,3]
[379604297,1755343863628,-480.0,0.00023013,3]
[379604298,1755343863637,-344.795812,0.00023013,7]
[379604299,1755343863647,-480.0,0.00023013,3]
[379604300,1755343863656,-320.0,0.00023013,3]
[379604301,1755343863665,-480.0,0.00023013,3]
[379604302,1755343863674,-480.0,0.00023013,3]
[379604303,1755343863683,-480.0,0.00023013,3]
[379604304,1755343863693,-2230.54,0.00023013,3]
[379604305,1755343863702,-480.0,0.00023013,3]
[379604306,1755343863713,-660.39,0.00023013,3]
[379604307,1755343863722,-480.0,0.00023013,3]
[379604308,1755343863731,-480.0,0.00023013,3]
[379604309,1755343863741,-480.0,0.00023013,3]
[379604310,1755343863752,-467.15045146,0.00023013,3]
[379604311,1755343863762,-480.0,0.00023013,3]
[379604312,1755343863771,-480.0,0.00023013,3]
[379604313,1755343863781,-480.0,0.00023013,3]
[379604314,1755343863790,-440.0,0.00023013,3]
[379604315,1755343863799,-480.0,0.00023013,3]
[379604316,1755343863809,-480.0,0.00023013,3]
[379604317,1755343863818,-480.0,0.00023013,3]
[379604318,1755343863827,-480.0,0.00023013,3]
[379604319,1755343863837,-480.0,0.00023013,3]
[379604320,1755343863847,-480.0,0.00023013,3]
[379604321,1755343863856,-480.0,0.00023013,3]
[379604322,1755343863865,-154.17205146,0.00023013,3]
[379604323,1755343863874,-480.0,0.00023013,3]
[379604324,1755343863883,-480.0,0.00023013,3]
[379604325,1755343863893,-480.0,0.00023013,3]
[379604326,1755343863903,-480.0,0.00023013,3]
[379604327,1755343863912,-380.0,0.00023013,3]
[379604328,1755343863921,-300.0,0.00023013,3]
[379604329,1755343863933,-480.0,0.00023013,3]
[379604330,1755343863943,-480.0,0.00023013,3]
[379604331,1755343863952,-960.16817,0.00023013,7]
[379604332,1755343863960,-384.076711,0.00023013,7]
[379604333,1755343863971,-480.0,0.00023013,3]
[379604334,1755343863980,-960.16817,0.00023013,7]
[379604335,1755343863989,-384.076711,0.00023013,7]
[379604336,1755343863999,-480.0,0.00023013,3]
[379604337,1755343864009,-535.40308265,0.00023013,3]
[379604338,1755343864019,-480.0,0.00023013,3]
[379604339,1755343864028,-480.0,0.00023013,3]
[379604340,1755343864038,-480.0,0.00023013,3]
[379604341,1755343864047,-480.0,0.00023013,3]
[379604342,1755343864057,-480.0,0.00023013,3]
[379604343,1755343864066,-480.0,0.00023013,3]
[379604344,1755343864075,-480.0,0.00023013,3]
[379604345,1755343864085,-480.0,0.00023013,3]
[379604346,1755343864094,-480.0,0.00023013,3]
[379604347,1755343864210,-480.0,0.00023013,3]
[379604348,1755343864220,-2261.75,0.00023013,3]
[379604349,1755343864230,-480.0,0.00023013,3]
[379604350,1755343864239,-360.8348439,0.00023013,3]
[379604351,1755343864249,-416.33910653,0.00023013,3]
[379604352,1755343864259,-480.0,0.00023013,3]
[379604353,1755343864268,-480.0,0.00023013,3]
[379604354,1755343864277,-624.93271084,0.00023013,3]
[379604355,1755343864285,-480.0,0.00023013,3]
[379604356,1755343864294,-194.008827,0.00023013,7]
[379604357,1755343864304,-480.0,0.00023013,3]
[379604358,1755343864313,-480.0,0.00023013,3]
[379604359,1755343864323,-194.008827,0.00023013,7]
[379604360,1755343864332,-480.0,0.00023013,3]
[379604361,1755343864341,-573.66,0.00023013,3]
[379604362,1755343864351,-480.0,0.00023013,3]
[379604363,1755343864360,-340.0,0.00023013,3]
[379604364,1755343864370,-480.0,0.00023013,3]
[379604365,1755343864379,-480.0,0.00023013,3]
[379604366,1755343864388,-480.0,0.00023013,3]
[379604367,1755343864397,-480.0,0.00023013,3]
[379604368,1755343864407,-743.69,0.00023013,3]
[379604369,1755343864416,-480.0,0.00023013,3]
[379604370,1755343864425,-724.76,0.00023013,3]
[379604371,1755343864434,-480.0,0.00023013,3]
[379604372,1755343864443,-480.0,0.00023013,3]
[379604373,1755343864452,-480.0,0.00023013,3]
[379604374,1755343864462,-463.85044727,0.00023013,3]
[379604375,1755343864471,-480.0,0.00023013,3]
[379604376,1755343864480,-480.0,0.00023013,3]
[379604377,1755343864490,-1513.37,0.00023013,3]
[379604378,1755343864500,-480.0,0.00023013,3]
[379604379,1755343864510,-589.14012497,0.00023013,3]
[379604380,1755343864519,-480.0,0.00023013,3]
[379604381,1755343864528,-1095.96,0.00023013,3]
[379604382,1755343864537,-480.0,0.00023013,3]
[379604383,1755343864546,-480.0,0.00023013,3]
[379604384,1755343864556,-480.0,0.00023013,3]
[379604385,1755343864565,-480.0,0.00023013,3]
[379604386,1755343864575,-480.0,0.00023013,3]
[379604387,1755343864585,-480.0,0.00023013,3]
[379604388,1755343864594,-480.0,0.00023013,3]
[379604389,1755343864603,-252.74001717,0.00023013,3]
[379604390,1755343864612,-480.0,0.00023013,3]
[379604391,1755343864621,-480.0,0.00023013,3]
[379604392,1755343864630,-480.0,0.00023013,3]
[379604393,1755343864640,-480.0,0.00023013,3]
[379604394,1755343864652,-480.0,0.00023013,3]
[379604395,1755343864661,-480.0,0.00023013,3]
[379604396,1755343864670,-320.0,0.00023013,3]
[379604397,1755343864680,-725.0,0.00023013,3]
[379604398,1755343864689,-480.0,0.00023013,3]
[379604399,1755343864698,-480.0,0.00023013,3]
[379604400,1755343864708,-480.0,0.00023013,3]
[379604401,1755343864717,-480.0,0.00023013,3]
[379604402,1755343864726,-590.45890832,0.00023013,3]
[379604403,1755343864737,-480.0,0.00023013,3]
[379604405,1755343864747,-480.0,0.00023013,3]
[379604406,1755343864756,-480.0,0.00023013,3]
[379604407,1755343864765,-480.0,0.00023013,3]
[379604408,1755343864775,-480.0,0.00023013,3]
[379604409,1755343864784,-1753.15,0.00023013,3]
[379604410,1755343864793,-480.0,0.00023013,3]
[379604411,1755343864803,-480.0,0.00023013,3]
[379604412,1755343864812,-480.0,0.00023013,3]
[379604413,1755343864821,-480.0,0.00023013,3]
[379604414,1755343864831,-480.0,0.00023013,3]
[379604415,1755343864841,-480.0,0.00023013,3]
[379604416,1755343864851,-501.74378,0.00023013,7]
[379604417,1755343864861,-480.0,0.00023013,3]
[379604418,1755343864870,-480.0,0.00023013,3]
[379604419,1755343864879,-501.74378,0.00023013,7]
[379604420,1755343864889,-480.0,0.00023013,3]
[379604421,1755343864900,-282.56240627,0.00023013,3]
[379604422,1755343864910,-480.0,0.00023013,3]
[379604423,1755343864919,-480.0,0.00023013,3]
[379604424,1755343864928,-480.0,0.00023013,3]
[379604425,1755343864942,-420.0,0.00023013,3]
[379604426,1755343864951,-151.0,0.00023013,7]
[379604427,1755343864962,-480.0,0.00023013,3]
[379604428,1755343864972,-480.0,0.00023013,3]
[379604429,1755343864981,-1568.16,0.00023013,3]
[379604430,1755343864991,-2648.8,0.00023013,3]
[379604431,1755343865002,-480.0,0.00023013,3]
[379604432,1755343865012,-315.59533152,0.00023013,3]
[379604433,1755343865022,-480.0,0.00023013,3]
[379604434,1755343865031,-440.0,0.00023013,3]
[379604435,1755343865041,-480.0,0.00023013,3]
[379604436,1755343865052,-480.0,0.00023013,3]
[379604437,1755343865062,-1129.28,0.00023013,3]
[379604438,1755343865071,-480.0,0.00023013,3]
[379604439,1755343865081,-480.0,0.00023013,3]
[379604440,1755343865090,-3533.42,0.00023013,3]
[379604441,1755343865100,-480.0,0.00023013,3]
[379604442,1755343865109,-480.0,0.00023013,3]
[379604443,1755343865119,-707.78,0.00023013,3]
[379604444,1755343865128,-480.0,0.00023013,3]
[379604445,1755343865138,-480.0,0.00023013,3]
[379604446,1755343865147,-346.45651071,0.00023013,3]
[379604447,1755343865157,-480.0,0.00023013,2]
[379604448,1755343865167,-480.0,0.00023013,3]
[379604449,1755343865177,-480.0,0.00023013,3]
[379604450,1755343865186,-480.0,0.00023013,3]
[379604451,1755343865196,-480.0,0.00023013,3]
[379604452,1755343865205,-151.0,0.00023013,7]
[379604453,1755343865214,-480.0,0.00023013,3]
[379604454,1755343865223,-480.0,0.00023013,3]
[379604455,1755343865233,-151.0,0.00023013,7]
[379604456,1755343865242,-484.85,0.00023013,3]
[379604457,1755343865251,-420.0,0.00023013,3]
[379604458,1755343865262,-151.0,0.00023013,7]
[379604459,1755343865273,-480.0,0.00023013,3]
[379604460,1755343865282,-125.67029875,0.00023013,3]
[379604461,1755343865615,-480.0,0.00021917,3]
[379604462,1755343865625,-480.0,0.00022191,3]
[379604463,1755343865636,-495.97244131,0.00022465,3]
[379604464,1755343866924,-0.0158604,0.00022465,3]
[379604465,1755343866989,-160.7608968,0.00021973,2]
[379604466,1755343867000,-95.50704736,0.00022465,3]
[379604467,1755343867011,-252.2138076,0.00023013,3]
[379604468,1755343867023,-102.11589365,0.00023013,3]
[379604469,1755343867032,-480.0,0.00023013,3]
[379604470,1755343867041,-321.45320735,0.00023013,3]
[379604471,1755343867053,-158.54679265,0.00023013,3]
[379604472,1755343867063,-186.8481218,0.00023013,3]
[379604473,1755343867115,-565.41,0.00021372,2]
[379604474,1755343867125,-497.36,0.00021706,10]
[379604475,1755343867136,-293.1518782,0.00023013,3]
[379604476,1755343867145,-360.0,0.00023013,3]
[379604477,1755343867155,-480.0,0.00023013,3]
[379604478,1755343867164,-480.0,0.00023013,3]
[379604479,1755343867173,-480.0,0.00023013,3]
[379604480,1755343867183,-1152.54,0.00023013,3]
[379604481,1755343867192,-791.92,0.00023013,3]
[379604482,1755343867201,-791.03,0.00023013,3]
[379604483,1755343867210,-782.85,0.00023013,3]
[379604484,1755343867220,-320.0,0.00023013,3]
[379604485,1755343867230,-480.0,0.00023013,3]
[379604486,1755343867240,-380.0,0.00023013,3]
[379604487,1755343867249,-500.0,0.00023013,3]
[379604488,1755343867259,-460.0,0.00023013,3]
[379604489,1755343867268,-527.53,0.00023013,3]
[379604490,1755343867278,-460.0,0.00023013,3]
[379604491,1755343867287,-480.0,0.00023013,3]
[379604492,1755343867296,-678.52,0.00023013,3]
[379604493,1755343867306,-781.9,0.00023013,3]
[379604494,1755343867315,-545.03,0.00023013,3]
[379604495,1755343867324,-480.0,0.00023013,3]
[379604496,1755343867334,-755.57,0.00023013,3]
[379604497,1755343867343,-480.0,0.00023013,3]
[379604498,1755343867353,-1537.62,0.00023013,3]
[379604499,1755343867362,-480.0,0.00023013,3]
[379604500,1755343867371,-1080.95,0.00023013,3]
[379604501,1755343867380,-2123.71,0.00023013,3]
[379604502,1755343867389,-480.0,0.00023013,3]
[379604503,1755343867399,-480.0,0.00023013,3]
[379604504,1755343867408,-834.84,0.00023013,3]
[379604505,1755343867417,-630.33,0.00023013,3]
[379604506,1755343867427,-480.0,0.00023013,3]
[379604507,1755343867436,-480.0,0.00023013,3]
[379604508,1755343867445,-480.0,0.00023013,3]
[379604509,1755343867455,-480.0,0.00023013,3]
[379604510,1755343867465,-1582.23,0.00023013,3]
[379604511,1755343867474,-480.0,0.00023013,3]
[379604512,1755343867483,-480.0,0.00023013,3]
[379604513,1755343867493,-603.52,0.00023013,3]
[379604514,1755343867502,-480.0,0.00023013,3]
[379604515,1755343867511,-480.0,0.00023013,3]
[379604516,1755343867520,-480.0,0.00023013,3]
[379604517,1755343867530,-306.98515145,0.00023013,3]
[379604518,1755343867539,-1050.97,0.00023013,3]
[379604519,1755343867549,-2191.75,0.00023013,3]
[379604520,1755343867558,-1156.0,0.00023013,3]
[379604521,1755343867568,-480.0,0.00023013,3]
[379604522,1755343867577,-502.32,0.00023013,3]
[379604523,1755343867586,-240.0,0.00023013,3]
[379604524,1755343867596,-480.0,0.00023013,3]
[379604525,1755343867605,-480.0,0.00023013,3]
[379604526,1755343867615,-480.0,0.00023013,3]
[379604527,1755343867624,-480.0,0.00023013,3]
[379604528,1755343867634,-480.0,0.00023013,3]
[379604529,1755343867643,-480.0,0.00023013,3]
[379604530,1755343867652,-480.0,0.00023013,3]
[379604531,1755343867661,-800.04,0.00023013,3]
[379604532,1755343867670,-669.88,0.00023013,3]
[379604533,1755343867679,-480.0,0.00023013,3]
[379604534,1755343867688,-927.22,0.00023013,3]
[379604535,1755343867698,-690.91,0.00023013,3]
[379604536,1755343867708,-480.0,0.00023013,3]
[379604537,1755343867717,-480.0,0.00023013,3]
[379604538,1755343867727,-749.30791125,0.00023013,3]
[379604539,1755343868451,-0.98496361,0.00023013,3]
[379604540,1755343868546,-344.59053895,0.00023013,3]
[379604559,1755343974435,-558.22,0.00020932,2]
[379604560,1755343974462,-300.0,0.00020988,2]
[379604561,1755343974483,-215.68093138,0.00020989,2]
[379604562,1755343974504,-427.09906862,0.00020989,2]
[379604567,1755343997398,5024.43652023,0.000199,2]
[379604579,1755344042966,-5024.4365201,0.00020408,2]
[379604580,1755344042988,-500.0,0.00020547,2]
[379604581,1755344043013,-5024.4365201,0.00020916,2]
[379604582,1755344043043,-551.11,0.00020931,2]
[379604583,1755344043273,300.0,0.00020915,2]
[379604587,1755344077543,33.0169598,0.00020989,2]
[379604589,1755344108305,151.0,0.00028767,120]
[379604590,1755344118561,-544.1,0.00020939,2]
[379604591,1755344125308,151.0,0.00028767,120]
[379604592,1755344140274,462.1417622,0.00020989,2]
[379604594,1755344168226,371.7582378,0.00020989,2]
[379604596,1755344189636,-500.0,0.00020939,2]
[379604597,1755344189902,4512.74584113,0.000199,2]
[379604598,1755344220834,302.0,0.00028767,120]
[379604599,1755344256357,-4512.74584104,0.00020408,2]
[379604600,1755344256378,-500.0,0.00020547,2]
[379604601,1755344256402,-4512.74584104,0.00020916,2]
[379604602,1755344256424,-37.17,0.00020939,2]
[379604603,1755344256445,-417.15472785,0.00020989,2]
[379604604,1755344256466,-300.0,0.00020999,2]
[379604605,1755344256488,-45995.18359007,0.00021,2]
[379604606,1755344289169,191.370036,0.00027397,120]
[379604607,1755344353750,448.0,0.00028767,120]
[379604609,1755344380805,4338.63051929,0.000199,2]
[379604616,1755344437927,151.0,0.00028767,120]
[379604639,1755344553658,2629.20738636,0.000199,2]
[379604640,1755344553685,1770.08965296,0.000199,2]
[379604647,1755344577522,155.0,0.00028767,120]
[379604670,1755344701890,248.152302,0.00013699,2]
[379604675,1755344727186,4252.65380456,0.000199,2]
[379604679,1755344747138,-248.152302,0.00020187,2]
[379604680,1755344747159,-198.35108416,0.00020408,2]
[379604696,1755344845089,-160.0,0.00020408,2]
[379604697,1755344845111,-1973.85237223,0.00020408,2]
[379604699,1755344850079,-2080.45034809,0.00020408,2]
[379604700,1755344850102,-500.0,0.00020486,2]
[379604701,1755344850124,-721.53706932,0.00020914,2]
[379604702,1755344850156,-478.46293068,0.00020914,2]
[379604703,1755344850178,-1200.0,0.00020915,2]
[379604705,1755344850203,-300.0,0.00020915,2]
[379604706,1755344850229,-368.94681995,0.00020916,2]
[379604707,1755344852110,-2905.49772437,0.00020916,2]
[379604709,1755344899948,3859.99539939,0.000199,2]
[379604717,1755345024801,201.44,0.0002,2]
[379604938,1755345034760,-366.88749082,0.00020408,2]
[379604939,1755345034771,-3493.10790855,0.00020408,2]
[379604940,1755345034782,-500.0,0.00020486,2]
[379604941,1755345034793,-3436.94886228,0.00020899,2]
[379604942,1755345034802,-1200.0,0.00020915,2]
[379604943,1755345034811,-3859.99539937,0.00020916,2]
[379604944,1755345034820,-530.34,0.00020936,2]
[379604946,1755345034830,-193.55319619,0.00020997,2]
[379604947,1755345034839,-300.0,0.00020998,2]
[379604948,1755345034849,-500.0,0.00020999,2]
[379604949,1755345034858,-500.0,0.00020999,2]
[379604950,1755345034868,-237.85986849,0.00020999,2]
[379604951,1755345034882,-500.0,0.00020999,2]
[379604952,1755345034892,-500.0,0.00020999,2]
[379604953,1755345034902,-500.0,0.00020999,2]
[379604954,1755345034911,-500.0,0.00020999,2]
[379604955,1755345034920,-500.0,0.00020999,2]
[379604956,1755345034929,-500.0,0.00020999,2]
[379604957,1755345034939,-500.0,0.00020999,2]
[379604958,1755345034948,-500.0,0.00020999,2]
[379604959,1755345034957,-381.80432047,0.00020999,2]
[379604970,1755345037723,-312.16666667,0.00020999,2]
[379604971,1755345037746,-322.83308049,0.00020999,2]
[379604972,1755345037758,-1467.80246422,0.00020999,2]
[379604973,1755345037830,-1630.92101454,0.00020999,2]
[379604974,1755345037842,-402.62686919,0.00020999,2]
[379605170,1755345039758,-23554.8294421,0.00020999,2]
[379605176,1755345039812,-10693.37077147,0.00020999,2]
[379605178,1755345039822,-118.19567953,0.00020999,2]
[379605180,1755345039831,-443.23430837,0.00020999,2]
[379605182,1755345039840,-500.0,0.00020999,2]
[379605184,1755345039850,-571.79295581,0.00020999,2]
[379605186,1755345039860,-500.0,0.00020999,2]
[379605188,1755345039868,-500.0,0.00020999,2]
[379605190,1755345039878,-500.0,0.00020999,2]
[379605192,1755345039887,-257.01753269,0.00020999,2]
[379605194,1755345039896,-500.0,0.00020999,2]
[379605197,1755345039906,-500.0,0.00020999,2]
[379605199,1755345039916,-500.0,0.00020999,2]
[379605201,1755345039925,-485.05421706,0.00020999,2]
[379605202,1755345039936,-500.0,0.00020999,2]
[379605204,1755345039946,-500.0,0.00020999,2]
[379605206,1755345039955,-500.0,0.00020999,2]
[379605208,1755345039964,-500.0,0.00020999,2]
[379605210,1755345039973,-500.0,0.00020999,2]
[379605212,1755345039982,-374.27429069,0.00020999,2]
[379605214,1755345039991,-500.0,0.00020999,2]
[379605216,1755345040001,-500.0,0.00020999,2]
[379605218,1755345040010,-500.0,0.00020999,2]
[379605220,1755345040019,-535.4426923,0.00020999,2]
[379605222,1755345040028,-500.0,0.00020999,2]
[379605224,1755345040038,-500.0,0.00020999,2]
[379605226,1755345040048,-500.0,0.00020999,2]
[379605228,1755345040057,-500.0,0.00020999,2]
[379605230,1755345040066,-500.0,0.00020999,2]
[379605232,1755345040075,-500.0,0.00020999,2]